fUSD/lending_fUSD_20251227
["ID","MTS","AMOUNT","RATE_DAILY","PERIOD"]
[399887350,1766809843542,-2964.69,0.00016922,2]
[399887352,1766809843551,-9999.99,0.00016922,2]
[399887354,1766809843560,-150.99,0.00016922,2]
[399887356,1766809843569,-5186.14,0.00016922,2]
[399887358,1766809843579,-2791.47,0.00016922,2]
[399887360,1766809843588,-1601.19,0.00016922,2]
[399887362,1766809843599,-4999.99,0.00016922,2]
[399887364,1766809843608,-4980.73,0.00016922,2]
[399887366,1766809843617,-9999.99,0.00016922,2]
[399887368,1766809843626,-1991.4807639,0.00016968,2]
[399887370,1766809843635,-151.36662435,0.00016999,2]
[399887372,1766809843645,-500.0,0.00016999,2]
[399887374,1766809843654,-297.50696173,0.00016999,2]
[399887376,1766809843663,-268.52644457,0.00016999,2]
[399887378,1766809843673,-500.0,0.00016999,2]
[399887380,1766809843682,-1677723.42726218,0.00017,2]
[399887419,1766809844805,-341.04,0.00012255,2]
[399887420,1766809844816,-782.96342547,0.00012255,2]
[399887449,1766809846153,-1767.395,0.00012255,2]
[399887450,1766809846165,-2983.4383552,0.00012255,2]
[399887451,1766809846177,-5300.13672791,0.00012255,2]
[399887452,1766809846189,-3865.87608707,0.00012255,2]
[399887453,1766809846207,-1681.28327184,0.00012255,2]
[399887454,1766809846219,-461.74759373,0.00012255,2]
[399887455,1766809846319,-2437.37666779,0.00012255,2]
[399887456,1766809846331,-2520.24583041,0.00012255,2]
[399887457,1766809846341,-157.10403156,0.00017,2]
[399887458,1766809846360,-3379.01848402,0.00017,2]
[399887459,1766809846389,-4491.83851285,0.00012771,2]
[399887460,1766809868130,-500.0,0.00012254,2]
[399887461,1766809868165,-259.92935473,0.00012254,2]
[399887462,1766809870544,-240.07064527,0.00012254,2]
[399887463,1766809870572,-23.54037233,0.00012254,2]
[399887464,1766809873215,-476.45962767,0.00012254,2]
[399887465,1766809873249,-500.0,0.00012254,2]
[399887466,1766809873276,-205.19933036,0.00012254,2]
[399887467,1766809877622,-294.80066964,0.00012254,2]
[399887468,1766809877649,-68.92020266,0.00012254,2]
[399887469,1766809880734,-206.21057752,0.00012254,2]
[399887477,1766810018731,283.6571966,0.00030136,120]
[399887478,1766810033224,-150.0,0.00012253,2]
[399887479,1766810033248,-119.83861556,0.00012254,2]
[399887481,1766810036329,-172.64538444,0.00012254,2]
[399887482,1766810036358,-69.43475702,0.00012254,2]
[399887485,1766810094499,-171.13,0.00012188,2]
[399887486,1766810094530,-51.00856919,0.00012254,2]
[399887490,1766810142678,-300.0,0.00012253,2]
[399887491,1766810142709,-1200.0,0.00012253,2]
[399887492,1766810142739,-300.0,0.00012253,2]
[399887493,1766810142774,-104.42589361,0.00012254,2]
[399887494,1766810142808,-500.0,0.00012254,2]
[399887495,1766810142840,-500.0,0.00012254,2]
[399887496,1766810142877,-500.0,0.00012254,2]
[399887497,1766810142910,-500.0,0.00012254,2]
[399887498,1766810142942,-500.0,0.00012254,2]
[399887499,1766810142974,-500.0,0.00012254,2]
[399887505,1766810442893,545.93377685,0.00030136,120]
[399887511,1766810607476,-233.988,0.0001201,2]
[399887512,1766810607505,-2878.02116923,0.00012171,2]
[399887513,1766810607537,-200.0,0.00012248,2]
[399887514,1766810607565,-250.0,0.00012248,2]
[399887515,1766810607599,-500.0,0.00012254,2]
[399887516,1766810607632,-500.0,0.00012254,2]
[399887517,1766810607663,-375.99166154,0.00012254,2]
[399887524,1766811032304,-176.02,0.00012071,2]
[399887525,1766811032315,-176.06814296,0.00012071,2]
[399887526,1766811032326,-81.51782033,0.00012071,2]
[399887527,1766811032355,-497.76627144,0.00012071,2]
[399887528,1766811032413,-908.55577311,0.00012071,2]
[399887529,1766811032426,-381.28958912,0.00012071,2]
[399887530,1766811032470,-17609.03935822,0.00012071,2]
[399887531,1766811032480,-300.0,0.00012152,2]
[399887532,1766811032490,-500.0,0.00012153,2]
[399887533,1766811032501,-500.0,0.00012153,2]
[399887534,1766811032512,-500.0,0.00012153,2]
[399887535,1766811032523,-500.0,0.00012153,2]
[399887536,1766811032533,-500.0,0.00012153,2]
[399887537,1766811032543,-500.0,0.00012153,2]
[399887538,1766811032553,-500.0,0.00012153,2]
[399887539,1766811032563,-500.0,0.00012153,2]
[399887540,1766811032573,-500.0,0.00012153,2]
[399887541,1766811032583,-500.0,0.00012153,2]
[399887542,1766811032593,-500.0,0.00012153,2]
[399887543,1766811032602,-500.0,0.00012153,2]
[399887544,1766811032612,-500.0,0.00012153,2]
[399887545,1766811032622,-500.0,0.00012153,2]
[399887546,1766811032632,-500.0,0.00012153,2]
[399887547,1766811032646,-500.0,0.00012153,2]
[399887548,1766811032656,-482.60835377,0.00012153,2]
[399887549,1766811032667,-500.0,0.00012153,2]
[399887550,1766811032677,-500.0,0.00012153,2]
[399887551,1766811032687,-500.0,0.00012153,2]
[399887553,1766811032697,-500.0,0.00012153,2]
[399887555,1766811032707,-500.0,0.00012153,2]
[399887557,1766811032717,-500.0,0.00012153,2]
[399887559,1766811032727,-500.0,0.00012153,2]
[399887561,1766811032736,-500.0,0.00012153,2]
[399887562,1766811032745,-500.0,0.00012153,2]
[399887565,1766811032755,-569.56315644,0.00012153,2]
[399887567,1766811032765,-266238.03490673,0.00012154,2]
[399887577,1766811032899,-1953.47622785,0.00012154,2]
[399887578,1766811032912,-8062.10780649,0.00012154,2]
[399887579,1766811032924,-565.39403671,0.00012154,2]
[399887580,1766811032936,-2332.08059724,0.00012154,2]
[399887581,1766811034371,500.0,0.00013511,3]
[399887582,1766811038352,-400.0,0.00012154,2]
[399887583,1766811038407,-6599.99875584,0.00012154,2]
[399887584,1766811038420,-594.16393369,0.00012154,2]
[399887585,1766811038434,-419.12847376,0.00012154,2]
[399887597,1766811040412,-5200.0,0.00012154,2]
[399887598,1766811040424,-936.43138001,0.00012154,2]
[399887599,1766811040694,-559.63991262,0.00012154,2]
[399887600,1766811040716,-1208.19127286,0.00012154,2]
[399887601,1766811040728,-32682.31025725,0.00012154,2]
[399887602,1766811040741,-1128.95967044,0.00012154,2]
[399887603,1766811040759,-732.18335078,0.00012154,2]
[399887604,1766811040771,-1963.36187539,0.00012154,2]
[399887605,1766811040784,-459.875,0.00012154,2]
[399887606,1766811040796,-495.68719811,0.00012154,2]
[399887607,1766811040809,-667468.97534423,0.00012154,2]
[399887608,1766811040819,-398.29615278,0.00012171,2]
[399887609,1766811040829,-304.57472841,0.00012248,2]
[399887610,1766811040839,-157.2278736,0.00012271,2]
[399887611,1766811040850,-19478.16881217,0.00012608,2]
[399887613,1766811040862,-398.29615278,0.00012696,2]
[399887614,1766811040872,-19478.16881217,0.00013144,2]
[399887615,1766811040883,-398.29615278,0.00013222,2]
[399887616,1766811040894,-250.0,0.00013278,2]
[399887617,1766811040904,-257.14,0.00013492,2]
[399887618,1766811040914,-1048.69,0.00013492,2]
[399887619,1766811040924,-150.0,0.00013671,2]
[399887620,1766811040934,-208.41,0.00013671,2]
[399887621,1766811040944,-19478.16881217,0.00013681,2]
[399887622,1766811040955,-500.0,0.00013698,2]
[399887623,1766811040965,-507.14401581,0.00013698,2]
[399887624,1766811040975,-500.0,0.00013698,2]
[399887625,1766811040985,-506.81970095,0.00013698,2]
[399887626,1766811040996,-504.4048165,0.00013698,2]
[399887627,1766811041006,-500.0,0.00013698,2]
[399887628,1766811041016,-505.51730535,0.00013698,2]
[399887629,1766811041026,-500.0,0.00013698,2]
[399887630,1766811041036,-507.94447262,0.00013698,2]
[399887631,1766811041046,-500.0,0.00013698,2]
[399887632,1766811041056,-647.87474289,0.00013698,2]
[399887633,1766811041066,-547.84139381,0.00013698,2]
[399887634,1766811041076,-200.0,0.00013699,2]
[399887635,1766811041086,-500.0,0.00013699,2]
[399887636,1766811041096,-500.0,0.00013699,2]
[399887637,1766811041112,-500.0,0.00013699,2]
[399887638,1766811041122,-500.0,0.00013699,2]
[399887639,1766811041132,-500.0,0.00013699,2]
[399887640,1766811041142,-500.0,0.00013699,2]
[399887641,1766811041152,-500.0,0.00013699,2]
[399887642,1766811041163,-500.0,0.00013699,2]
[399887643,1766811041173,-530.35636999,0.00013699,2]
[399887644,1766811041183,-500.0,0.00013699,2]
[399887645,1766811041193,-500.0,0.00013699,2]
[399887646,1766811041204,-398.29615278,0.00013747,2]
[399887647,1766811041214,-3240.0,0.00013782,2]
[399887648,1766811041224,-16163.34,0.00013851,2]
[399887649,1766811041235,-500.0,0.00013973,2]
[399887650,1766811041245,-19478.16881217,0.00014217,2]
[399887651,1766811041256,-500.0,0.00014247,2]
[399887652,1766811041267,-398.29615278,0.00014273,2]
[399887653,1766811041277,-500.0,0.00014373,2]
[399887654,1766811041287,-500.0,0.00014521,2]
[399887655,1766811041297,-19478.16881217,0.00014754,2]
[399887656,1766811041307,-500.0,0.00014795,2]
[399887657,1766811041319,-398.29615278,0.00014798,2]
[399887658,1766811041329,-1000.0,0.00014921,2]
[399887659,1766811041339,-11996.22,0.0001501,2]
[399887660,1766811041349,-151.0,0.00015033,2]
[399887661,1766811041360,-151.0,0.00015033,2]
[399887662,1766811041370,-151.0,0.00015033,2]
[399887663,1766811041380,-151.0,0.00015033,2]
[399887664,1766811041390,-629.34910635,0.00015069,2]
[399887665,1766811041400,-19478.16881217,0.0001529,2]
[399887666,1766811041410,-9999.99,0.0001531,2]
[399887667,1766811041421,-4999.99,0.0001531,2]
[399887668,1766811041431,-150.99,0.0001531,2]
[399887669,1766811041441,-1601.19,0.0001531,2]
[399887670,1766811041451,-2791.47,0.0001531,2]
[399887671,1766811041462,-5186.14,0.0001531,2]
[399887672,1766811041477,-299.99,0.0001531,2]
[399887673,1766811041488,-1176.49,0.0001531,2]
[399887674,1766811041498,-150.99,0.0001531,2]
[399887675,1766811041508,-4980.73,0.0001531,2]
[399887676,1766811041518,-2964.69,0.0001531,2]
[399887677,1766811041529,-9999.99,0.0001531,2]
[399887678,1766811041540,-398.29615278,0.00015324,2]
[399887679,1766811041550,-596.46148567,0.00015468,2]
[399887680,1766811041560,-398.29615278,0.00015849,2]
[399887681,1766811041571,-500.0,0.00015973,2]
[399887682,1766811041581,-500.0,0.00015973,2]
[399887683,1766811041591,-500.0,0.00015973,2]
[399887684,1766811041602,-500.0,0.00015973,2]
[399887685,1766811041612,-190.24545095,0.00015973,2]
[399887686,1766811041622,-500.0,0.00015973,2]
[399887687,1766811041632,-500.0,0.00015973,2]
[399887688,1766811041643,-500.0,0.00015973,2]
[399887689,1766811041653,-500.0,0.00015973,2]
[399887690,1766811041664,-500.86568541,0.00015973,2]
[399887691,1766811041674,-500.76713087,0.00015973,2]
[399887692,1766811041684,-500.88915437,0.00015973,2]
[399887693,1766811041694,-500.0,0.00015973,2]
[399887694,1766811041704,-500.0,0.00015973,2]
[399887695,1766811041715,-500.70783862,0.00015973,2]
[399887696,1766811041725,-500.69120585,0.00015973,2]
[399887697,1766811041735,-500.0,0.00015973,2]
[399887698,1766811041746,-500.0,0.00015973,2]
[399887699,1766811041757,-500.0,0.00015973,2]
[399887700,1766811041767,-500.0,0.00015973,2]
[399887701,1766811041778,-500.0,0.00015973,2]
[399887702,1766811041789,-499.4006942,0.00015973,2]
[399887703,1766811041799,-501.09702076,0.00015973,2]
[399887704,1766811041809,-169.79069321,0.00015973,2]
[399887705,1766811041819,-500.0,0.00015973,2]
[399887706,1766811041834,-500.77480786,0.00015973,2]
[399887707,1766811041845,-500.79213904,0.00015973,2]
[399887708,1766811041855,-500.80456344,0.00015973,2]
[399887709,1766811041869,-500.0,0.00015973,2]
[399887710,1766811041879,-500.0,0.00015973,2]
[399887711,1766811041889,-500.0,0.00015973,2]
[399887712,1766811041899,-500.80128753,0.00015973,2]
[399887713,1766811041909,-500.0,0.00015973,2]
[399887714,1766811041920,-500.0,0.00015973,2]
[399887715,1766811041930,-500.0,0.00015973,2]
[399887716,1766811041941,-250.0,0.00016245,2]
[399887717,1766811041951,-398.29615278,0.00016375,2]
[399887718,1766811041961,-1053.00587476,0.00016438,2]
[399887719,1766811041973,-1053.00587476,0.00016438,2]
[399887720,1766811041983,-1053.00587476,0.00016438,2]
[399887721,1766811041993,-1053.00587476,0.00016438,2]
[399887722,1766811042003,-1053.00587476,0.00016438,2]
[399887723,1766811042014,-1053.00587476,0.00016438,2]
[399887724,1766811042024,-1053.00587476,0.00016438,2]
[399887725,1766811042038,-1053.00587476,0.00016438,2]
[399887726,1766811042049,-1053.00587476,0.00016438,2]
[399887727,1766811042059,-1053.00587476,0.00016438,2]
[399887728,1766811042069,-1053.00587476,0.00016438,2]
[399887729,1766811042079,-1053.00587476,0.00016438,2]
[399887730,1766811042089,-1053.00587476,0.00016438,2]
[399887731,1766811042101,-1053.00587476,0.00016438,2]
[399887732,1766811042112,-1053.00587476,0.00016438,2]
[399887733,1766811042122,-1053.00587476,0.00016438,2]
[399887734,1766811042132,-1053.00587476,0.00016438,2]
[399887735,1766811042142,-1053.00587476,0.00016438,2]
[399887736,1766811042152,-1053.00587476,0.00016438,2]
[399887737,1766811042162,-1053.00587476,0.00016438,2]
[399887738,1766811042172,-1053.00587476,0.00016438,2]
[399887739,1766811042183,-1053.00587476,0.00016438,2]
[399887740,1766811042194,-1053.00587476,0.00016438,2]
[399887741,1766811042204,-1053.00587476,0.00016438,2]
[399887742,1766811042214,-1053.00587476,0.00016438,2]
[399887743,1766811042227,-1053.00587476,0.00016438,2]
[399887744,1766811042237,-1053.00587476,0.00016438,2]
[399887745,1766811042247,-1053.00587476,0.00016438,2]
[399887746,1766811042257,-1053.00587476,0.00016438,2]
[399887747,1766811042268,-1053.00587476,0.00016438,2]
[399887748,1766811042278,-1053.00587476,0.00016438,2]
[399887749,1766811042288,-1053.00587476,0.00016438,2]
[399887750,1766811042298,-1053.00587476,0.00016438,2]
[399887751,1766811042309,-1053.00587476,0.00016438,2]
[399887752,1766811042319,-1053.00587476,0.00016438,2]
[399887753,1766811042329,-1053.00587476,0.00016438,2]
[399887754,1766811042339,-1053.00587476,0.00016438,2]
[399887755,1766811042350,-1053.00587476,0.00016438,2]
[399887756,1766811042360,-1053.00587476,0.00016438,2]
[399887757,1766811042370,-1053.00587476,0.00016438,2]
[399887758,1766811042380,-1053.00587476,0.00016438,2]
[399887759,1766811042390,-1053.00587476,0.00016438,2]
[399887760,1766811042400,-1053.00587476,0.00016438,2]
[399887761,1766811042411,-1053.00587476,0.00016438,2]
[399887762,1766811042420,-1053.00587476,0.00016438,2]
[399887763,1766811042430,-1053.00587476,0.00016438,2]
[399887764,1766811042440,-1053.00587476,0.00016438,2]
[399887765,1766811042450,-1053.00587476,0.00016438,2]
[399887766,1766811042460,-1053.00587476,0.00016438,2]
[399887767,1766811042470,-1053.00587476,0.00016438,2]
[399887768,1766811042480,-1053.00587476,0.00016438,2]
[399887769,1766811042489,-1053.00587476,0.00016438,2]
[399887770,1766811042499,-1053.00587476,0.00016438,2]
[399887771,1766811042509,-1053.00587476,0.00016438,2]
[399887772,1766811042518,-1053.00587476,0.00016438,2]
[399887773,1766811042529,-1053.00587476,0.00016438,2]
[399887774,1766811042540,-1053.00587476,0.00016438,2]
[399887775,1766811042550,-1053.00587476,0.00016438,2]
[399887776,1766811042560,-1053.00587476,0.00016438,2]
[399887777,1766811042569,-1053.00587476,0.00016438,2]
[399887778,1766811042579,-1053.00587476,0.00016438,2]
[399887779,1766811042589,-1053.00587476,0.00016438,2]
[399887780,1766811042598,-1053.00587476,0.00016438,2]
[399887781,1766811042621,-1053.00587476,0.00016438,2]
[399887782,1766811042632,-1053.00587476,0.00016438,2]
[399887783,1766811042643,-1053.00587476,0.00016438,2]
[399887784,1766811042653,-1053.00587476,0.00016438,2]
[399887785,1766811042663,-1053.00587476,0.00016438,2]
[399887786,1766811042673,-2985.06607579,0.00016438,2]
[399887787,1766811042683,-2985.06607579,0.00016438,2]
[399887788,1766811042693,-2985.06607579,0.00016438,2]
[399887789,1766811042703,-2985.06607579,0.00016438,2]
[399887790,1766811042713,-2985.06607579,0.00016438,2]
[399887791,1766811042723,-2985.06607579,0.00016438,2]
[399887792,1766811042733,-2985.06607579,0.00016438,2]
[399887793,1766811042743,-2985.06607579,0.00016438,2]
[399887794,1766811042753,-2985.06607579,0.00016438,2]
[399887795,1766811042764,-2985.06607579,0.00016438,2]
[399887796,1766811042774,-2985.06607579,0.00016438,2]
[399887797,1766811042784,-2985.06607579,0.00016438,2]
[399887798,1766811042795,-2985.06607579,0.00016438,2]
[399887799,1766811042806,-2985.06607579,0.00016438,2]
[399887800,1766811042815,-2985.06607579,0.00016438,2]
[399887801,1766811042825,-2985.06607579,0.00016438,2]
[399887802,1766811042836,-2985.06607579,0.00016438,2]
[399887803,1766811042846,-2985.06607579,0.00016438,2]
[399887804,1766811042857,-2985.06607579,0.00016438,2]
[399887805,1766811042871,-2985.06607579,0.00016438,2]
[399887806,1766811042881,-2985.06607569,0.00016438,2]
[399887807,1766811042893,-226.08,0.00016438,2]
[399887808,1766811042903,-500.0,0.00016521,2]
[399887809,1766811042914,-165.42,0.00016712,2]
[399887810,1766811042925,-982.74887118,0.000168,2]
[399887811,1766811042936,-398.29615278,0.000169,2]
[399887812,1766811042946,-200.8205224,0.000169,2]
[399887813,1766811042956,-194.19827992,0.000169,2]
[399887814,1766811042966,-508.75317618,0.000169,2]
[399887815,1766811042981,-313.99302103,0.00016999,2]
[399887816,1766811042991,-300.0,0.00016999,2]
[399887817,1766811043001,-389.25208852,0.00016999,2]
[399887818,1766811043011,-150.0,0.00016999,2]
[399887819,1766811043021,-255913.11693489,0.00017,2]
[399887820,1766811043032,-7038.65363335,0.00017,2]
[399887821,1766811043042,-512417.44243687,0.00017,2]
[399887822,1766811044065,-260.90489238,0.00017,2]
[399887823,1766811044079,-2170.09,0.00017,2]
[399887824,1766811044091,-521.7277719,0.00017,2]
[399887825,1766811044104,-7883.64469327,0.00017,2]
[399887826,1766811044119,-482.92950368,0.00017,2]
[399887827,1766811044132,-45436.74868816,0.00017,2]
[399887828,1766811044973,-2727.89505997,0.00017,2]
[399887829,1766811045028,-1908.94807662,0.00015827,2]
[399887830,1766811045041,-734.46396016,0.00015827,2]
[399887832,1766811046360,-1031.79579359,0.00015827,2]
[399887833,1766811046373,-892.81253916,0.00015827,2]
[399887834,1766811046414,-1155.39425,0.00015827,2]
[399887835,1766811046523,-1556.54727354,0.00015827,2]
[399887836,1766811046535,-619.59135763,0.00015827,2]
[399887837,1766811046631,-272.26769055,0.00015827,2]
[399887838,1766811046644,-11306.34787092,0.00015827,2]
[399887839,1766811046654,-3477.02812645,0.00017,2]
[399887840,1766811046666,-13375.92,0.00017,2]
[399887855,1766811093028,187.19,0.00011911,2]
[399887856,1766811104176,359.0,0.0003013,120]
[399887857,1766811104991,943.0,0.0003013,120]
[399887861,1766811163639,355.0,0.0003013,120]
[399887862,1766811164439,949.0,0.0003013,120]
[399887863,1766811165234,413.0,0.0003013,120]
[399887864,1766811166044,1646.0,0.0003013,120]
[399887868,1766811223377,1491.0,0.0003013,120]
[399887869,1766811224147,909.0,0.0003013,120]
[399887871,1766811284605,1084.0,0.0003013,120]
[399887877,1766811694626,419.45446834,0.00030136,120]
[399887882,1766812036958,500.0,0.00030136,120]
[399887883,1766812037199,500.0,0.00030136,120]
[399887884,1766812037466,500.0,0.00030136,120]
[399887885,1766812037685,500.0,0.00030136,120]
[399887886,1766812037921,500.0,0.00030136,120]
[399887887,1766812038144,500.0,0.00030136,120]
[399887888,1766812038375,500.0,0.00030136,120]
[399887889,1766812038602,500.0,0.00030136,120]
[399887890,1766812038823,500.0,0.00030136,120]
[399887891,1766812039086,500.0,0.00030136,120]
[399887892,1766812039343,387.26536019,0.00030136,120]
[399887896,1766812100868,142812.81,0.00011954,2]
[399887897,1766812100905,857187.19,0.00011954,2]
[399887899,1766812117965,999.0,0.00013277,3]
[399887910,1766812186143,780.52,6.606e-05,2]
[399887911,1766812186585,780.52,6.953e-05,2]
[399887912,1766812186633,780.52,7.301e-05,2]
[399887913,1766812186726,780.52,7.649e-05,2]
[399887914,1766812186923,780.52,7.996e-05,2]
[399887915,1766812187128,780.52,8.344e-05,2]
[399887916,1766812187329,780.52,8.692e-05,2]
[399887917,1766812187548,780.52,9.039e-05,2]
[399887918,1766812187878,780.52,9.387e-05,2]
[399887919,1766812188102,780.52,9.735e-05,2]
[399887920,1766812188315,780.52,0.00010082,2]
[399887921,1766812188509,780.52,0.0001043,2]
[399887922,1766812188707,780.52,0.00010778,2]
[399887923,1766812188898,780.52,0.00011125,2]
[399887924,1766812189101,780.52,0.00011473,2]
[399887925,1766812189294,780.52,0.00011821,2]
[399887928,1766812229381,905601.02619314,0.00011954,2]
[399887929,1766812229423,94398.97380686,0.00011954,2]
[399887930,1766812231381,-297.34591027,0.00012053,2]
[399887932,1766812231393,-1106.50134578,0.00012053,2]
[399887933,1766812231439,-93.49865422,0.00012053,2]
[399887934,1766812231452,-150.0,0.00012053,2]
[399887935,1766812231464,-660.13184579,0.00012054,2]
[399887936,1766812231477,-265.00000012,0.00012054,2]
[399887937,1766812231491,-697.39149,0.00012054,2]
[399887938,1766812231504,-717.38573744,0.00012054,2]
[399887939,1766812231522,-491.7797,0.00012054,2]
[399887940,1766812231536,-6889.881243,0.00012054,2]
[399887941,1766812231550,-803.70972726,0.00012054,2]
[399887942,1766812231563,-297.05507805,0.00012054,2]
[399887943,1766812231577,-1366.96461276,0.00012054,2]
[399887944,1766812231591,-302.28095713,0.00012054,2]
[399887945,1766812231605,-310.31,0.00012054,2]
[399887946,1766812231618,-6378.37033482,0.00012054,2]
[399887947,1766812231632,-4034.16507825,0.00012054,2]
[399887948,1766812231646,-634.47129063,0.00012054,2]
[399887949,1766812231658,-1848.75756851,0.00012054,2]
[399887951,1766812231672,-7811.02013624,0.00012054,2]
[399887952,1766812231683,-1956.81371688,0.00012054,2]
[399887955,1766812231697,-543.18628312,0.00012054,2]
[399887957,1766812231707,-183.81465282,0.00012055,2]
[399887959,1766812231717,-500.0,0.00012147,2]
[399887961,1766812231728,-207.4,0.00012147,2]
[399887963,1766812231740,-151.0,0.00012147,2]
[399887964,1766812231751,-142.16960803,0.00012147,2]
[399887973,1766812237662,-8.83039197,0.00012147,2]
[399887974,1766812237673,-151.0,0.00012147,2]
[399887975,1766812237684,-151.0,0.00012147,2]
[399887976,1766812237695,-193.10679145,0.00012147,2]
[399887977,1766812237709,-306.89320855,0.00012147,2]
[399887978,1766812237721,-151.0,0.00012147,2]
[399887979,1766812237735,-61.08943145,0.00012147,2]
[399887980,1766812237749,-438.91056855,0.00012147,2]
[399887981,1766812237761,-151.0,0.00012147,2]
[399887982,1766812237772,-151.0,0.00012147,2]
[399887983,1766812237783,-500.0,0.00012147,2]
[399887984,1766812237794,-500.0,0.00012147,2]
[399887985,1766812237805,-127.69649848,0.00012147,2]
[399887986,1766812237817,-23.30350152,0.00012147,2]
[399887987,1766812237828,-500.0,0.00012147,2]
[399887988,1766812237838,-151.0,0.00012147,2]
[399887989,1766812237849,-500.0,0.00012147,2]
[399887990,1766812237859,-151.0,0.00012147,2]
[399887991,1766812237870,-423.88214652,0.00012147,2]
[399887992,1766812237883,-76.11785348,0.00012147,2]
[399887993,1766812237894,-151.0,0.00012147,2]
[399887994,1766812237905,-500.0,0.00012147,2]
[399887995,1766812237917,-151.0,0.00012147,2]
[399887996,1766812237928,-500.0,0.00012147,2]
[399887997,1766812237940,-151.0,0.00012147,2]
[399887998,1766812237951,-129.45306346,0.00012147,2]
[399887999,1766812237965,-370.54693654,0.00012147,2]
[399888000,1766812237977,-500.0,0.00012147,2]
[399888001,1766812237988,-151.0,0.00012147,2]
[399888002,1766812237999,-500.0,0.00012147,2]
[399888003,1766812238010,-500.0,0.00012147,2]
[399888004,1766812238022,-151.0,0.00012147,2]
[399888005,1766812238033,-500.0,0.00012147,2]
[399888006,1766812238044,-151.0,0.00012147,2]
[399888007,1766812238055,-500.0,0.00012147,2]
[399888008,1766812238067,-151.0,0.00012147,2]
[399888009,1766812238078,-500.0,0.00012147,2]
[399888010,1766812238090,-151.0,0.00012147,2]
[399888011,1766812238102,-500.0,0.00012147,2]
[399888012,1766812238115,-151.0,0.00012147,2]
[399888013,1766812238126,-500.0,0.00012147,2]
[399888014,1766812238137,-151.0,0.00012147,2]
[399888015,1766812238149,-500.0,0.00012147,2]
[399888016,1766812238160,-500.0,0.00012147,2]
[399888017,1766812238172,-500.0,0.00012147,2]
[399888018,1766812238183,-151.0,0.00012147,2]
[399888019,1766812238194,-500.0,0.00012147,2]
[399888020,1766812238205,-151.0,0.00012147,2]
[399888021,1766812238216,-151.0,0.00012147,2]
[399888022,1766812238227,-151.0,0.00012147,2]
[399888023,1766812238238,-500.0,0.00012147,2]
[399888024,1766812238249,-151.0,0.00012147,2]
[399888025,1766812238261,-174.36183869,0.00012147,2]
[399888026,1766812238272,-151.0,0.00012147,2]
[399888027,1766812238283,-151.0,0.00012147,2]
[399888028,1766812238294,-151.0,0.00012147,2]
[399888029,1766812238305,-151.0,0.00012147,2]
[399888030,1766812238315,-151.0,0.00012147,2]
[399888031,1766812238326,-200.0,0.00012147,2]
[399888032,1766812238336,-151.0,0.00012147,2]
[399888033,1766812238347,-200.0,0.00012147,2]
[399888034,1766812238357,-420.48,0.00012147,2]
[399888035,1766812238368,-163.85,0.00012154,2]
[399888036,1766812238378,-1000.0,0.00012155,2]
[399888037,1766812238389,-780.52,0.00012168,2]
[399888038,1766812238399,-1000.0,0.00012253,2]
[399888039,1766812238409,-6656.2,0.00012335,2]
[399888040,1766812238420,-420.48,0.00012421,2]
[399888041,1766812238431,-780.52,0.00012516,2]
[399888042,1766812238441,-304.57472841,0.00012695,2]
[399888043,1766812238451,-420.48,0.00012695,2]
[399888044,1766812238462,-780.52,0.00012864,2]
[399888045,1766812238473,-500.0,0.00012887,2]
[399888046,1766812238483,-420.48,0.00012968,2]
[399888047,1766812238493,-4551.91,0.00013137,2]
[399888048,1766812238504,-4382.23,0.00013177,2]
[399888049,1766812238516,-780.52,0.00013211,2]
[399888050,1766812238526,-420.48,0.00013242,2]
[399888051,1766812238537,-500.0,0.00013242,2]